bitfinex-derivatives/quotes_ETHF0:USTF0_20250828
["timestamp","ask_amount","ask_price","bid_price","bid_amount"]
[1756405296967,0.5573,4493.6,4493.5,3.7762]
[1756405298372,0.2247,4493.6,4493.5,3.7762]
[1756405299677,0.40052,4493.8,4493.7,0.5684]
[1756405300871,0.62522,4493.8,4493.7,0.5684]
[1756405302871,0.40052,4493.8,4493.7,0.5684]
[1756405306370,0.95783,4493.6,4493.5,3.7762]
[1756405306774,0.95783,4493.6,4493.5,3.425]
[1756405307166,1.49192728,4493.6,4493.5,3.425]
[1756405307372,0.95783,4493.6,4493.5,3.425]
[1756405308169,1.49196152,4493.6,4493.5,3.425]
[1756405308779,1.49196152,4493.6,4493.5,3.7762]
[1756405309277,1.49196152,4493.6,4493.5,3.425]
[1756405309676,1.49196152,4493.6,4493.5,3.7762]
[1756405310771,1.49196152,4493.6,4493.5,3.425]
[1756405311176,1.49196152,4493.6,4493.5,3.7762]
[1756405315187,1.49196152,4493.6,4493.5,3.5591293]
[1756405319987,1.49196152,4493.6,4493.0,3.559]
[1756405319988,0.95788,4493.1,4493.0,3.559]
[1756405320188,1.49201152,4493.1,4493.0,3.425]
[1756405320681,1.49201152,4493.1,4493.0,0.2172]
[1756405320880,0.95791,4492.7,4492.6,0.2172]
[1756405321185,1.49204152,4492.7,4492.6,0.2172]
[1756405321384,1.49204152,4492.7,4492.6,0.5684]
[1756405322080,0.5573,4492.2,4492.1,0.5684]
[1756405322283,1.49209152,4492.2,4492.1,0.5684]
[1756405323582,0.53413152,4492.2,4492.1,4.5684]
[1756405323786,0.93478152,4492.3,4492.1,4.61786]
[1756405323980,0.40063,4492.5,4492.2,0.40065]
[1756405324184,0.40063,4492.5,4492.4,0.2172]
[1756405324384,0.53702344,4492.5,4492.4,0.5684]
[1756405324580,0.40062,4492.6,4492.4,0.2172]
[1756405324784,0.4006,4492.9,4492.5,3.425]
[1756405324983,0.53695711,4492.8,4492.7,0.2172]
[1756405325187,0.53695711,4492.8,4492.7,0.5684]
[1756405325586,0.3326,4493.3,4492.7,0.5684]
[1756405325587,0.40057,4493.2,4492.7,4.5684]
[1756405325795,0.5367355,4493.1,4493.0,0.2172]
[1756405325993,0.40055,4493.5,4493.0,3.82558]
[1756405326192,0.40055,4493.5,4493.4,0.5563]
[1756405326391,0.93721233,4493.5,4493.4,0.5563]
[1756405326984,0.53666233,4493.5,4493.4,0.5563]
[1756405327888,0.40049,4494.2,4493.5,0.319]
[1756405328086,0.5366482,4494.1,4494.0,3.7641]
[1756405328389,0.62909,4494.2,4494.1,0.5563]
[1756405328596,0.2286,4494.2,4494.1,0.5563]
[1756405328993,0.73609,4494.1,4494.0,3.2078]
[1756405329194,1.50126422,4494.1,4494.0,3.2078]
[1756405329694,0.40052,4493.8,4493.7,0.319]
[1756405329895,0.96473,4493.6,4493.5,3.4451]
[1756405330490,0.96473,4493.6,4493.5,3.7641]
[1756405332498,0.96473,4493.6,4493.5,3.4451]
[1756405332999,0.96473,4493.6,4493.5,3.7641]
[1756405333601,0.62913,4493.6,4493.5,3.7641]
[1756405334397,1.00139,4493.4,4493.1,3.2078]
[1756405334602,0.96477,4493.2,4493.1,3.2078]
[1756405334899,0.96477,4493.2,4491.8,1.98362706]
[1756405334900,0.62921,4492.7,4492.6,3.2078]
[1756405335099,0.96481,4492.7,4492.6,3.2078]
[1756405337602,0.40065,4492.3,4492.2,0.5563]
[1756405337805,0.96485,4492.3,4492.2,0.5563]
[1756405338499,0.3356,4492.2,4492.1,3.2078]
[1756405338696,0.5642,4492.2,4492.1,3.2078]
[1756405342208,0.5642,4492.2,4492.1,3.4451]
[1756405342401,0.40067,4492.1,4491.9,0.319]
[1756405342707,0.5642,4492.0,4491.9,0.319]
[1756405343001,0.5642,4492.0,4491.9,0.2373]
[1756405343392,0.5642,4492.0,4491.9,0.5563]
[1756405344806,0.2286,4492.0,4491.9,0.5563]
[1756405345298,0.40067,4492.1,4491.9,0.2373]
[1756405345502,3.60839,4493.0,4492.9,0.5563]
[1756405345701,3.2078,4493.5,4493.0,0.319]
[1756405345896,3.60834,4493.5,4493.4,0.2373]
[1756405346103,3.60834,4493.5,4493.4,0.5563]
[1756405347004,4.17254,4493.5,4493.4,0.2373]
[1756405347208,0.2286,4493.1,4493.0,0.2373]
[1756405347400,0.5642,4493.1,4493.0,0.5563]
[1756405348308,0.40058,4493.1,4493.0,0.5563]
[1756405348499,0.62918,4493.1,4493.0,0.5563]
[1756405348694,0.96478,4493.1,4493.0,0.5563]
[1756405348905,0.62918,4493.1,4493.0,0.5563]
[1756405349112,0.96478,4493.1,4493.0,0.5563]
[1756405349401,0.40057,4493.3,4493.1,0.319]
[1756405349604,0.40057,4493.3,4493.2,0.5563]
[1756405350003,0.62911,4493.9,4493.8,0.5563]
[1756405350601,0.96471,4493.9,4493.8,0.5563]
[1756405351808,0.96471,4493.9,4493.8,0.2373]
[1756405352506,0.96471,4493.9,4493.8,0.5563]
[1756405353098,0.40053,4493.6,4493.5,0.5563]
[1756405353302,0.96473,4493.6,4493.5,0.5563]
[1756405354907,1.00121,4494.2,4493.6,0.319]
[1756405355106,0.2286,4494.0,4493.9,0.2373]
[1756405355313,1.56546,4494.0,4493.6,0.319]
[1756405355509,0.62919,4493.0,4492.9,3.4451]
[1756405355708,0.96479,4493.0,4492.9,3.2078]
[1756405355908,0.62925,4492.3,4492.2,3.7829]
[1756405357216,0.40063,4492.5,4492.4,0.2144]
[1756405357406,0.3411,4493.2,4492.4,0.2144]
[1756405357609,0.96217,4493.2,4493.1,0.5522]
[1756405357816,0.40056,4493.3,4493.1,0.2144]
[1756405358010,0.40053,4493.6,4493.5,0.2144]
[1756405358209,0.40053,4493.6,4493.5,0.5522]
[1756405359013,0.96213,4493.6,4493.5,0.5522]
[1756405360210,0.96213,4493.6,4493.5,0.2144]
[1756405360926,0.96213,4493.6,4493.5,0.5522]
[1756405362825,0.62106,4493.3,4493.2,3.4222]
[1756405363023,0.96216,4493.3,4493.2,3.4222]
[1756405363223,0.96216,4493.3,4493.2,3.2078]
[1756405363429,0.62116,4492.3,4492.2,0.5522]
[1756405363724,0.62116,4492.3,4492.2,3.76]
[1756405363928,0.96226,4492.3,4492.2,3.76]
[1756405365230,0.40066,4492.3,4492.2,3.76]
[1756405366128,0.3411,4492.8,4492.2,3.76]
[1756405366330,0.62109,4493.0,4492.9,0.2144]
[1756405366528,0.96219,4493.0,4492.9,0.5522]
[1756405366730,0.96219,4493.0,4492.9,0.2144]
[1756405367026,0.96219,4493.0,4492.9,0.5522]
[1756405372528,0.62109,4493.0,4492.9,0.5522]
[1756405373834,0.96219,4493.0,4492.9,0.5522]
[1756405375133,0.40065,4492.3,4492.2,3.76]
[1756405376039,0.96225,4492.3,4492.2,3.76]
[1756405379241,0.40065,4492.3,4492.2,3.76]
[1756405379635,0.62115,4492.3,4492.2,3.76]
[1756405379941,0.96225,4492.3,4492.2,3.76]
[1756405380441,0.62115,4492.3,4492.2,3.76]
[1756405380941,0.96225,4492.3,4492.2,3.2078]
[1756405381830,0.62119,4491.9,4491.8,0.2144]
[1756405382136,0.3411,4491.8,4491.7,3.2078]
[1756405382337,0.5616,4491.8,4491.7,3.2078]
[1756405383736,0.5616,4491.8,4491.7,3.4222]
[1756405384247,0.5616,4491.8,4491.7,3.2078]
[1756405384436,0.2205,4491.4,4491.3,0.2144]
[1756405384636,0.96233,4491.4,4491.3,0.5522]
[1756405384942,0.96238,4490.8,4490.7,3.76]
[1756405385339,0.40078,4490.8,4490.7,3.76]
[1756405385635,0.96238,4490.8,4490.7,3.2078]
[1756405385839,0.96238,4490.8,4490.7,3.4222]
[1756405386041,0.96238,4490.8,4490.7,0.2144]
[1756405387343,0.4008,4490.6,4490.5,0.3378]
[1756405387543,0.40087,4489.8,4489.7,3.2078]
[1756405387741,0.95157,4489.8,4489.7,3.4273]
[1756405387948,0.95157,4489.8,4489.7,3.7439]
[1756405388149,0.40087,4489.8,4489.7,3.7439]
[1756405388641,0.95157,4489.8,4489.7,3.7439]
[1756405389345,0.61587,4489.8,4489.7,3.7439]
[1756405389545,0.40086,4490.0,4489.9,0.2195]
[1756405389740,0.40084,4490.2,4490.0,0.3166]
[1756405389942,0.40082,4490.4,4490.3,0.5361]
[1756405390148,0.40081,4490.6,4490.5,0.2195]
[1756405390446,3.60855,4491.2,4491.1,0.5361]
[1756405390648,1.33746,4491.8,4491.2,0.5361]
[1756405390649,0.40074,4491.3,4491.2,0.5361]
[1756405391140,0.95144,4491.3,4491.2,0.5361]
[1756405391538,0.61574,4491.3,4491.2,0.5361]
[1756405391945,0.95144,4491.3,4491.2,0.5361]
[1756405392249,0.61574,4491.3,4491.2,0.5361]
[1756405392449,0.40074,4491.3,4491.2,0.5361]
[1756405392951,0.95144,4491.3,4491.2,0.2195]
[1756405393151,0.95147,4490.9,4490.8,3.7439]
[1756405393352,0.61577,4490.9,4490.8,3.7439]
[1756405393849,0.40077,4490.9,4490.8,3.7439]
[1756405394046,0.40075,4491.2,4491.0,0.2195]
[1756405394347,0.40073,4491.4,4491.3,0.5361]
[1756405394551,0.40073,4491.4,4491.3,3.7439]
[1756405395945,0.95143,4491.4,4491.3,0.2195]
[1756405396449,0.95143,4491.4,4491.3,0.5361]
[1756405397247,0.61569,4491.9,4491.8,0.2195]
[1756405397555,0.61569,4491.9,4491.8,0.5361]
[1756405397750,0.40072,4491.5,4491.4,0.3166]
[1756405398051,1.00174,4491.8,4490.8,3.2078]
[1756405398052,0.40077,4490.9,4490.8,3.4273]
[1756405398256,0.95147,4490.9,4490.8,3.4273]
[1756405398549,0.95147,4490.9,4490.8,3.7439]
[1756405398749,0.61577,4490.9,4490.8,3.7439]
[1756405399857,0.40077,4491.0,4490.9,0.5361]
[1756405401248,0.61577,4491.0,4490.9,0.5361]
[1756405401654,0.95147,4491.0,4490.9,0.5361]
[1756405402859,0.61577,4491.0,4490.9,0.5361]
[1756405403059,0.40076,4491.2,4490.9,0.2195]
[1756405403260,0.40076,4491.2,4491.1,0.2195]
[1756405403453,0.61576,4491.2,4491.1,0.5361]
[1756405403659,0.95146,4491.2,4491.1,0.5361]
[1756405405051,0.95146,4491.2,4491.1,0.2195]
[1756405405256,0.95146,4491.2,4491.1,0.5361]
[1756405406061,0.95146,4491.2,4491.1,0.2195]
[1756405406660,0.95146,4491.2,4491.1,0.5361]
[1756405408264,0.40075,4491.2,4491.1,0.5361]
[1756405409658,0.95145,4491.2,4491.1,0.5361]
[1756405411962,0.95145,4491.2,4491.1,0.2195]
[1756405412158,0.95145,4491.2,4491.1,0.5361]
[1756405412570,0.40075,4491.2,4491.1,0.5361]
[1756405412868,0.40075,4491.2,4490.8,3.2078]
[1756405412869,0.95141,4491.6,4491.5,0.2195]
[1756405413068,0.95141,4491.6,4491.5,0.5361]
[1756405413261,0.61571,4491.6,4491.5,0.5361]
[1756405413666,0.95141,4491.6,4491.5,0.5361]
[1756405414066,0.40071,4491.6,4491.5,0.5361]
[1756405414266,0.95141,4491.6,4491.5,0.5361]
[1756405414962,0.3357,4492.3,4491.5,0.2195]
[1756405415162,0.40068,4492.0,4491.9,0.5361]
[1756405415367,0.95138,4492.0,4491.9,0.5361]
[1756405417771,0.40068,4492.0,4491.9,0.5361]
[1756405418266,0.94438,4492.0,4491.9,0.5361]
[1756405419073,0.40067,4492.1,4491.9,0.5361]
[1756405419368,0.40067,4492.1,4492.0,0.5376]
[1756405419673,0.40066,4492.2,4492.1,0.3273]
[1756405419866,3.2078,4492.6,4492.1,0.2103]
[1756405420066,0.62296,4492.2,4492.1,0.2103]
[1756405420263,0.94436,4492.2,4492.1,0.2103]
[1756405420468,0.94436,4492.2,4492.1,0.5376]
[1756405420866,0.94438,4492.0,4491.9,3.2078]
[1756405421670,0.94438,4492.0,4491.9,3.7454]
[1756405423270,0.94438,4492.0,4491.9,3.2078]
[1756405423470,0.4007,4491.7,4491.6,0.5376]
[1756405423671,0.9444,4491.7,4491.6,0.5376]
[1756405426378,0.623,4491.7,4491.6,0.5376]
[1756405426573,0.40067,4492.1,4491.9,0.2103]
[1756405426773,0.5437,4492.3,4492.2,0.2103]
[1756405426975,0.5437,4492.3,4492.2,0.5376]
[1756405427273,0.62295,4492.3,4492.2,0.5376]
[1756405428376,0.94435,4492.3,4492.2,0.5376]
[1756405429278,0.40064,4492.4,4492.3,0.3273]
[1756405429483,0.94434,4492.4,4492.3,0.5376]
[1756405430980,0.94437,4492.1,4492.0,3.4181]
[1756405431282,0.94437,4492.1,4492.0,3.7454]
[1756405431873,0.2223,4492.1,4492.0,3.7454]
[1756405432081,0.40065,4492.3,4492.0,3.81878]
[1756405432374,4.20926,4493.1,4492.3,0.2103]
[1756405432582,33.01929,4493.0,4492.9,0.5376]
[1756405432770,33.56017328,4493.0,4492.9,0.5376]
[1756405432973,1.48517328,4493.0,4492.9,0.5376]
[1756405433980,1.48517328,4493.0,4492.9,0.2103]
[1756405434379,0.94429,4493.0,4492.9,0.2103]
[1756405435082,0.94429,4493.0,4492.9,0.5376]
[1756405435681,1.26272999,4493.0,4492.9,0.5376]
[1756405435881,1.48502999,4493.0,4492.9,0.5376]
[1756405436578,0.40063,4492.6,4492.5,0.2103]
[1756405436780,0.62293,4492.6,4492.5,0.5376]
[1756405437477,0.94433,4492.6,4492.5,0.5376]
[1756405437678,0.5437,4492.6,4492.5,0.5376]
[1756405438378,0.3214,4492.9,4492.6,0.72792]
[1756405438583,0.9443,4492.9,4492.8,0.5376]
[1756405441085,0.40062,4492.7,4492.4,0.3273]
[1756405441285,0.40062,4492.7,4492.6,0.2103]
[1756405441485,0.62292,4492.7,4492.6,0.5376]
[1756405441780,0.94432,4492.7,4492.6,0.5376]
[1756405442682,0.62292,4492.7,4492.6,0.5376]
[1756405443484,0.4006,4492.9,4492.6,0.5376]
[1756405443683,0.9443,4492.9,4492.8,0.2103]
[1756405443882,1.48526033,4492.9,4492.8,0.5376]
[1756405444786,0.9443,4492.9,4492.8,0.5376]
[1756405445381,0.9443,4492.9,4492.8,0.2103]
[1756405445684,0.9443,4492.9,4492.8,0.5376]
[1756405446491,0.722,4492.9,4492.8,0.5376]
[1756405446890,0.9292,4492.9,4492.8,0.5376]
[1756405448991,3.2078,4494.1,4493.3,0.318]
[1756405449195,0.40053,4493.7,4493.4,3.2078]
[1756405449392,0.5126,4493.6,4493.5,0.318]
[1756405449592,0.40054,4493.5,4493.4,3.5258]
[1756405449794,0.91314,4493.5,4493.4,3.7386]
[1756405451991,0.91314,4493.5,4493.4,3.4206]
[1756405452392,0.91314,4493.5,4493.4,3.7386]
[1756405456400,0.91314,4493.5,4492.6,3.4206]
[1756405456401,0.2072,4492.7,4492.6,3.4206]
[1756405456594,0.91321,4492.7,4492.6,3.7386]
[1756405456995,0.60781,4492.7,4492.6,3.7386]
[1756405457195,0.40061,4492.7,4492.6,3.7386]
[1756405457497,0.4006,4492.8,4492.7,0.5308]
[1756405458000,0.9132,4492.8,4492.7,0.5308]
[1756405458302,0.6078,4492.8,4492.7,0.5308]
[1756405458795,0.9132,4492.8,4492.7,0.5308]
[1756405469802,1.00135,4493.6,4492.9,0.318]
[1756405470007,0.91314,4493.5,4493.4,0.2128]
[1756405470207,0.91314,4493.5,4493.4,0.5308]
[1756405470397,0.91314,4493.5,4493.4,3.7386]
[1756405471705,0.91319,4493.0,4492.9,3.4206]
[1756405472409,0.91319,4493.0,4492.9,3.2078]
[1756405473603,0.91319,4493.0,4492.9,3.5258]
[1756405474710,0.91319,4493.0,4492.9,3.4206]
[1756405475102,0.91319,4493.0,4492.9,3.7386]
[1756405477505,0.91319,4493.0,4492.3,1.91520424]
[1756405477710,0.92183,4492.5,4492.4,3.2078]
[1756405477903,0.60548,4492.0,4491.9,3.7401]
[1756405478103,0.92188,4492.0,4491.9,3.7401]
[1756405478711,0.71708,4492.0,4491.9,3.7401]
[1756405478907,0.92188,4492.0,4491.9,3.7401]
[1756405480110,0.40068,4492.0,4491.9,3.7401]
[1756405483304,32.072,4494.6,4491.9,3.7401]
[1756405483510,0.4006,4492.8,4492.7,0.5323]
[1756405483712,0.5212,4493.5,4492.8,0.3177]
[1756405484007,1.4541284,4493.4,4493.3,0.5323]
[1756405486905,0.92179,4493.0,4492.9,3.7401]
[1756405489009,3.2078,4493.9,4492.9,3.4224]
[1756405489214,0.53256219,4493.8,4493.7,0.5323]
[1756405490313,0.40051,4493.9,4493.7,0.5323]
[1756405490513,0.92171,4493.9,4493.8,0.3177]
[1756405490815,1.4540837,4493.9,4493.8,0.5323]
[1756405494518,0.9328837,4493.9,4493.8,0.5323]
[1756405495219,0.5323737,4493.9,4493.8,0.5323]
[1756405495413,0.4005,4494.0,4493.9,0.3177]
[1756405495619,0.4005,4494.0,4493.9,0.5323]
[1756405495819,0.6053,4494.0,4493.9,0.5323]
[1756405497016,3.729,4494.9,4494.8,0.2146]
[1756405497214,4.66146975,4494.9,4494.8,0.5323]
[1756405498313,4.66146975,4494.9,4494.8,0.2146]
[1756405499013,0.40044,4494.7,4494.6,0.3177]
[1756405499220,0.92164,4494.7,4494.6,0.5323]
[1756405499615,0.40049,4494.1,4493.9,3.2078]
[1756405499809,0.5212,4494.1,4494.0,0.5323]
[1756405500012,0.40048,4494.2,4494.1,0.3177]
[1756405500212,0.3164,4494.6,4494.4,0.3177]
[1756405500411,0.92164,4494.6,4494.5,0.3177]
[1756405500613,0.92169,4494.1,4494.0,0.5323]
[1756405500811,0.40048,4494.2,4494.0,0.5323]
[1756405501215,0.92168,4494.2,4494.1,0.5323]
[1756405502616,0.92168,4494.2,4494.1,0.2146]
[1756405502814,0.9217,4494.0,4493.9,3.4224]
[1756405503009,0.9217,4494.0,4493.9,3.7401]
[1756405504514,0.2048,4494.0,4493.9,3.7401]
[1756405504717,0.9217,4494.0,4493.9,3.7401]
[1756405505419,1.00107,4494.8,4494.3,0.2146]
[1756405505620,0.40045,4494.5,4494.4,0.3177]
[1756405505818,0.40045,4494.5,4494.4,0.5323]
[1756405506014,0.60525,4494.5,4494.4,0.5323]
[1756405506215,0.92215,4494.5,4494.4,0.5323]
[1756405506410,0.40045,4494.5,4494.4,0.5323]
[1756405507217,0.3169,4495.1,4494.7,0.2066]
[1756405507417,0.5214,4495.3,4495.2,0.5055]
[1756405507614,0.92178,4495.3,4495.2,0.5055]
[1756405511217,0.92178,4495.3,4494.9,3.4144]
[1756405511218,0.60491,4495.0,4494.9,3.4144]
[1756405511418,0.92181,4495.0,4494.9,3.7133]
[1756405511617,0.4004,4495.1,4494.9,3.4144]
[1756405511814,0.4004,4495.1,4495.0,0.5055]
[1756405513322,0.9218,4495.1,4495.0,0.5055]
[1756405513820,0.4004,4495.1,4495.0,0.5055]
[1756405514324,0.92166,4496.7,4496.6,0.5055]
[1756405514523,0.92166,4496.7,4496.6,3.7133]
[1756405516122,0.40026,4496.7,4496.6,3.7133]
[1756405516817,0.60476,4496.7,4496.6,3.7133]
[1756405518422,0.40026,4496.7,4496.6,3.7133]
[1756405518815,0.3169,4497.6,4496.7,0.2989]
[1756405519023,0.92158,4497.6,4497.5,0.5055]
[1756405521219,0.71708,4497.6,4497.5,0.5055]
[1756405521419,0.00407151,4498.0,4497.9,0.2066]
[1756405521420,0.40422151,4498.0,4497.9,0.2066]
[1756405521614,0.00407151,4498.0,4497.9,0.5055]
[1756405522624,0.52547151,4498.0,4497.9,0.5055]
[1756405522824,0.00407151,4498.0,4497.9,0.5055]
[1756405523225,0.00407151,4498.0,4497.9,3.7133]
[1756405525127,0.52547151,4498.0,4497.9,3.7133]
[1756405525334,0.00407151,4498.0,4497.9,3.7133]
[1756405531827,0.00407151,4498.0,4497.9,4.11345]
[1756405532926,0.40421151,4498.0,4497.9,3.7133]
[1756405533131,0.60871151,4498.0,4497.9,3.7133]
[1756405533328,0.92561151,4498.0,4497.9,3.7133]
[1756405533636,0.40421151,4498.0,4497.9,3.7133]
[1756405534434,0.40421151,4498.0,4497.9,4.11345]
[1756405534936,0.40421151,4498.0,4497.9,3.7133]
[1756405535536,0.00407151,4498.0,4497.9,4.11345]
[1756405536036,0.40012,4498.3,4498.2,0.89992]
[1756405536936,0.40012,4498.3,4498.2,0.4998]
[1756405538636,0.40012,4498.3,4498.2,0.89992]
[1756405539238,0.40012,4498.3,4498.2,0.4998]
[1756405540034,0.3033,4498.8,4498.3,0.40011]
[1756405540240,0.40007,4498.8,4498.7,3.7088]
[1756405540441,0.90887,4498.8,4498.7,3.7088]
[1756405541339,0.2055,4498.8,4498.7,3.7088]
[1756405541538,0.60557,4498.8,4498.7,3.7088]
[1756405543139,0.40007,4498.8,4498.7,3.7088]
[1756405543338,1.13553789,4498.8,4498.7,3.7088]
[1756405543533,1.43883789,4498.8,4498.7,3.7088]
[1756405543735,0.90887,4498.8,4498.7,3.7088]
[1756405544136,1.43886644,4498.8,4498.7,3.7088]
[1756405546134,0.90882,4499.4,4499.3,0.501]
[1756405546339,1.43950755,4499.4,4499.3,0.501]
[1756405546730,1.03948755,4499.4,4499.3,0.501]
[1756405547334,0.53068755,4499.4,4499.3,0.501]
[1756405547642,0.3033,4500.1,4499.3,0.90103]
[1756405547841,0.5088,4500.1,4500.0,3.7088]
[1756405548031,1.03955504,4500.1,4500.0,3.7088]
[1756405548337,0.1,4500.2,4500.1,0.501]
[1756405548542,0.63056662,4500.2,4500.1,0.501]
[1756405549134,1.13937735,4500.2,4500.1,0.501]
[1756405549336,0.83607735,4500.2,4500.1,0.501]
[1756405549534,1.13937735,4500.2,4500.1,0.501]
[1756405549940,1.13937735,4500.2,4500.1,0.2078]
[1756405550739,0.90876,4500.1,4500.0,3.2078]
[1756405550940,1.43933735,4500.1,4500.0,3.2078]
[1756405552241,1.43933735,4500.1,4500.0,3.7088]
[1756405552844,1.43933735,4500.1,4500.0,3.2078]
[1756405553238,1.43933735,4500.1,4500.0,3.4156]
[1756405553543,1.43933735,4500.1,4500.0,3.7088]
[1756405553742,1.43933735,4500.1,4500.0,3.4156]
[1756405553944,1.43933735,4500.1,4500.0,3.2078]
[1756405554947,5.43933735,4500.1,4500.0,3.2078]
[1756405556451,1.23383735,4500.1,4500.0,3.7088]
[1756405556654,1.43933735,4500.1,4500.0,3.7088]
[1756405557741,0.53057735,4500.1,4500.0,3.7088]
[1756405557939,0.1,4500.2,4500.1,0.501]
[1756405560347,0.6088,4500.2,4500.1,0.501]
[1756405560848,0.1,4500.2,4500.1,0.501]
[1756405562045,0.39996,4500.1,4500.0,3.2078]
[1756405562247,0.39996,4500.1,4500.0,3.7088]
[1756405562451,0.1,4500.2,4500.1,0.501]
[1756405562851,0.3055,4500.2,4500.1,0.501]
[1756405563153,0.6088,4500.2,4500.1,0.501]
[1756405563746,0.6088,4500.2,4500.1,0.2078]
[1756405563952,0.90876,4500.1,4500.0,3.2078]
[1756405564848,0.90876,4500.1,4500.0,3.7088]
[1756405565046,0.90876,4500.1,4500.0,3.2078]
[1756405565552,0.90876,4500.1,4500.0,3.7088]
[1756405565851,0.90876,4500.1,4500.0,3.4156]
[1756405566446,0.90876,4500.1,4500.0,3.2078]
[1756405569257,0.90876,4500.1,4500.0,3.6932]
[1756405571657,0.60546,4500.1,4500.0,3.6932]
[1756405572352,0.89656,4500.1,4500.0,3.6932]
[1756405573659,0.1,4500.2,4500.1,0.2933]
[1756405573860,0.49995,4500.2,4500.1,0.4854]
[1756405574247,0.98395,4500.2,4500.1,0.4854]
[1756405574856,0.69285,4500.2,4500.1,0.4854]
[1756405575855,0.98395,4500.2,4500.1,0.4854]
[1756405576752,0.98395,4500.2,4500.1,0.1921]
[1756405577361,0.98395,4500.2,4500.1,0.05028555]
[1756405577954,0.39995,4500.1,4500.0,3.2078]
[1756405578164,0.88395,4500.1,4500.0,3.2078]
[1756405578465,0.88395,4500.1,4500.0,3.6932]
[1756405578671,0.88395,4500.1,4500.0,3.3999]
[1756405578966,1.4159585,4500.1,4500.0,3.6932]
[1756405581362,1.4159585,4500.1,4499.1,0.2933]
[1756405581363,1.00003,4499.5,4499.1,0.2933]
[1756405581557,0.59293,4499.2,4499.0,3.2078]
[1756405581766,0.484,4499.1,4499.0,3.2078]
[1756405582065,1.01611865,4499.1,4499.0,3.2078]
[1756405582267,0.484,4499.1,4499.0,3.2078]
[1756405582970,0.484,4499.1,4499.0,3.6932]
[1756405585171,0.2911,4499.6,4499.1,0.2933]
[1756405585359,0.88403,4499.3,4499.2,0.4854]
[1756405585563,1.41540617,4499.3,4499.2,0.1921]
[1756405585763,0.88403,4499.3,4499.2,0.1921]
[1756405586068,0.484,4499.0,4498.9,0.4854]
[1756405586462,0.484,4499.0,4498.9,0.1921]
[1756405587364,0.484,4499.0,4498.9,0.4854]
[1756405588366,0.88407,4498.8,4498.7,0.4854]
[1756405588772,0.40007,4498.8,4498.7,0.4854]
[1756405590959,3.2078,4499.6,4498.7,4.4854]
[1756405591160,0.40001,4499.6,4499.4,0.2933]
[1756405591364,0.39999,4499.7,4499.6,0.4854]
[1756405594768,0.88399,4499.7,4499.6,0.2933]
[1756405594974,4.20771,4500.1,4499.2,3.2078]
[1756405594975,0.59293,4499.3,4499.2,3.6932]
[1756405596775,0.89073,4499.3,4499.2,3.6932]
[1756405597473,0.89073,4499.3,4499.2,3.3999]
[1756405598078,0.89073,4499.3,4499.2,3.6832]
[1756405598573,0.90527,4498.8,4498.7,3.2078]
[1756405598771,0.90527,4498.8,4498.7,3.6836]
[1756405599875,0.60747,4498.8,4498.7,3.6836]
[1756405600074,0.40007,4498.8,4498.7,3.6836]
[1756405600674,0.90527,4498.8,4498.7,3.6836]
[1756405603376,0.40007,4498.8,4498.7,3.6836]
[1756405604876,0.40006,4499.0,4498.7,3.6836]
[1756405605179,0.40004,4499.2,4499.0,0.2833]
[1756405605382,0.4,4499.6,4499.5,0.1925]
[1756405605679,0.4,4499.6,4499.5,0.4758]
[1756405605879,0.4,4499.6,4499.5,41.2758]
[1756405606280,0.4,4499.6,4499.5,41.05901129]
[1756405607581,0.39999,4499.8,4499.5,40.8]
[1756405607780,0.2978,4499.8,4499.7,0.1925]
[1756405607981,0.69778,4499.8,4499.7,0.1925]
[1756405608381,0.90518,4499.8,4499.7,0.4758]
[1756405609479,0.39998,4499.8,4499.7,0.4758]
[1756405610282,0.2978,4500.1,4499.6,0.2833]
[1756405610483,0.90515,4500.1,4500.0,0.4758]
[1756405610780,1.43757989,4500.1,4500.0,0.1925]
[1756405611085,1.43757989,4500.1,4500.0,0.4758]
[1756405612586,1.23017989,4500.1,4500.0,0.4758]
[1756405612888,0.90515,4500.1,4500.0,0.4758]
[1756405614481,0.90515,4500.1,4500.0,0.1925]
[1756405614686,0.5052,4499.6,4499.5,40.8]
[1756405614887,0.9052,4499.6,4499.5,40.8]
[1756405615087,0.2074,4499.6,4499.5,40.8]
[1756405615283,0.5052,4499.6,4499.5,41.0833]
[1756405615589,0.9052,4499.6,4499.5,41.0833]
[1756405616688,0.4,4499.6,4499.5,41.0833]
[1756405616890,0.39999,4499.7,4499.5,40.8]
[1756405617090,0.39999,4499.7,4499.6,0.4758]
[1756405618291,0.90519,4499.7,4499.6,0.4758]
[1756405628906,0.4,4499.6,4499.5,40.8]
[1756405629101,0.7072,4499.6,4499.5,40.8]
[1756405629404,0.7072,4499.6,4499.5,41.1092]
[1756405631510,0.3072,4499.6,4499.5,41.1092]
[1756405632006,0.7072,4499.6,4499.5,41.50921]
[1756405632410,0.7072,4499.6,4499.5,41.1092]
[1756405634010,0.9129,4499.6,4499.5,0.5027]
[1756405638411,0.5129,4498.9,4498.8,3.7105]
[1756405638807,0.5129,4498.9,4498.8,44.5105]
[1756405639212,0.9129,4499.6,4499.5,0.5027]
[1756405639402,0.3072,4500.1,4499.9,0.3092]
[1756405639606,0.3072,4500.1,4500.0,0.1935]
[1756405639803,0.1,4500.2,4500.1,0.90265]
[1756405640409,0.1,4500.2,4500.1,44.91045]